[Event "Titled Tuesday Blitz January 03 Early 2023"]
[White "Flis, Pawel"]
[Black "Tarnowska, Aleksandra"]
[WhiteFideId "1112864"]
[BlackFideId "1180967"]
[WhiteElo "1879"]
[BlackElo "1835"]
[Result "0-1"]
[Round "06"]
[TimeControl "180+2"]
[Date "2023.01.03"]
[WhiteClock "0:00:01"]
[BlackClock "0:00:04"]

1. e4 {[%clk 0:02:53]}  c5 {[%clk 0:03:00]} 2. d4 {[%clk 0:02:53]}  cxd4 {[%clk 0:02:59]} 3. Nf3 {[%clk 0:02:54]}  d6 {[%clk 0:02:59]} 4. Nxd4 {[%clk 0:02:54]}  Nf6 {[%clk 0:02:59]} 5. Nc3 {[%clk 0:02:54]}  g6 {[%clk 0:03:00]} 6. Be3 {[%clk 0:02:54]}  Bg7 {[%clk 0:03:00]} 7. f3 {[%clk 0:02:55]}  O-O {[%clk 0:03:01]} 8. Qd2 {[%clk 0:02:55]}  Nc6 {[%clk 0:03:01]} 9. Bc4 {[%clk 0:02:55]}  a6 {[%clk 0:03:01]} 10. O-O-O {[%clk 0:02:54]}  Qc7 {[%clk 0:02:55]} 11. Bb3 {[%clk 0:02:53]}  b5 {[%clk 0:02:53]} 12. Nxc6 {[%clk 0:02:48]}  Qxc6 {[%clk 0:02:54]} 13. Nd5 {[%clk 0:02:49]}  Qd7 {[%clk 0:02:45]} 14. Nb6 {[%clk 0:02:48]}  Qb7 {[%clk 0:02:36]} 15. Nxa8 {[%clk 0:02:48]}  Qxa8 {[%clk 0:02:36]} 16. Bh6 {[%clk 0:02:48]}  a5 {[%clk 0:02:32]} 17. a4 {[%clk 0:02:47]}  bxa4 {[%clk 0:02:22]} 18. Bxa4 {[%clk 0:02:46]}  Be6 {[%clk 0:02:14]} 19. h4 {[%clk 0:02:41]}  Rb8 {[%clk 0:01:20]} 20. Bxg7 {[%clk 0:02:38]}  Kxg7 {[%clk 0:01:20]} 21. h5 {[%clk 0:02:38]}  Qb7 {[%clk 0:01:08]} 22. Qc3 {[%clk 0:02:30]}  Rc8 {[%clk 0:01:04]} 23. Qa3 {[%clk 0:02:16]}  Nxh5 {[%clk 0:00:44]} 24. g4 {[%clk 0:02:13]}  Ng3 {[%clk 0:00:44]} 25. Rh2 {[%clk 0:01:55]}  h5 {[%clk 0:00:40]} 26. gxh5 {[%clk 0:01:54]}  Nxh5 {[%clk 0:00:40]} 27. Rg1 {[%clk 0:01:24]}  Qb6 {[%clk 0:00:31]} 28. Rgh1 {[%clk 0:01:14]}  Qd4 {[%clk 0:00:12]} 29. Kb1 {[%clk 0:01:06]}  Rb8 {[%clk 0:00:08]} 30. Rg2 {[%clk 0:00:38]}  Kf8 {[%clk 0:00:05]} 31. Ka1 {[%clk 0:00:26]}  Nf4 {[%clk 0:00:06]} 32. Rgh2 {[%clk 0:00:25]}  Nh5 {[%clk 0:00:06]} 33. Rg2 {[%clk 0:00:24]}  Nf4 {[%clk 0:00:06]} 34. c3 {[%clk 0:00:17]}  Qd3 {[%clk 0:00:03]} 35. Rh8+ {[%clk 0:00:14]}  Kg7 {[%clk 0:00:03]} 36. Rxb8 {[%clk 0:00:13]}  Nxg2 {[%clk 0:00:02]} 37. Bb3 {[%clk 0:00:07]}  Qf1+ {[%clk 0:00:03]} 38. Ka2 {[%clk 0:00:07]}  Qf2 {[%clk 0:00:03]} 39. Bxe6 {[%clk 0:00:05]}  fxe6 {[%clk 0:00:03]} 40. Qb3 {[%clk 0:00:05]}  Kf7 {[%clk 0:00:03]} 41. Rh8 {[%clk 0:00:02]}  Qc5 {[%clk 0:00:03]} 42. Rh7+ {[%clk 0:00:01]}  Kg8 {[%clk 0:00:04]} 0-1


[Site "https://www.chess.com"]

[Event "Titled Tuesday Blitz January 03 Early 2023"]
[White "monkins"]
[Black "Necula, Iulian"]
[BlackFideId "1232380"]
[WhiteElo "2242"]
[BlackElo "1851"]
[Result "1-0"]
[Round "06"]
[TimeControl "180+2"]
[Date "2023.01.03"]
[WhiteClock "0:00:15"]
[BlackClock "0:00:24"]

1. Nf3 {[%clk 0:03:00]}  f5 {[%clk 0:02:59]} 2. g3 {[%clk 0:03:00]}  Nf6 {[%clk 0:02:58]} 3. Bg2 {[%clk 0:03:00]}  g6 {[%clk 0:02:59]} 4. c4 {[%clk 0:03:01]}  Bg7 {[%clk 0:02:59]} 5. O-O {[%clk 0:03:01]}  O-O {[%clk 0:03:00]} 6. Nc3 {[%clk 0:03:02]}  d6 {[%clk 0:03:00]} 7. d3 {[%clk 0:02:59]}  Qe8 {[%clk 0:03:00]} 8. Rb1 {[%clk 0:02:59]}  e5 {[%clk 0:03:00]} 9. b4 {[%clk 0:02:54]}  a5 {[%clk 0:02:59]} 10. b5 {[%clk 0:02:54]}  c6 {[%clk 0:02:50]} 11. bxc6 {[%clk 0:02:52]}  bxc6 {[%clk 0:02:51]} 12. Ba3 {[%clk 0:02:50]}  Qd7 {[%clk 0:02:42]} 13. Qa4 {[%clk 0:02:44]}  Bb7 {[%clk 0:02:35]} 14. Nd2 {[%clk 0:02:40]}  Rc8 {[%clk 0:02:24]} 15. Bxd6 {[%clk 0:02:34]}  Qxd6 {[%clk 0:02:19]} 16. Rxb7 {[%clk 0:02:33]}  e4 {[%clk 0:02:16]} 17. Qc2 {[%clk 0:02:20]}  exd3 {[%clk 0:02:13]} 18. Qxd3 {[%clk 0:01:43]}  Qxd3 {[%clk 0:02:10]} 19. exd3 {[%clk 0:01:44]}  Nbd7 {[%clk 0:02:07]} 20. Na4 {[%clk 0:01:36]}  Rab8 {[%clk 0:02:02]} 21. Rfb1 {[%clk 0:01:26]}  Rxb7 {[%clk 0:02:01]} 22. Rxb7 {[%clk 0:01:25]}  Ne5 {[%clk 0:01:58]} 23. d4 {[%clk 0:01:18]}  Nf7 {[%clk 0:01:42]} 24. Rb6 {[%clk 0:01:00]}  Ne4 {[%clk 0:01:29]} 25. Nxe4 {[%clk 0:00:49]}  fxe4 {[%clk 0:01:30]} 26. Bxe4 {[%clk 0:00:49]}  Bxd4 {[%clk 0:01:30]} 27. Rxc6 {[%clk 0:00:46]}  Rf8 {[%clk 0:01:27]} 28. Bd5 {[%clk 0:00:44]}  Kg7 {[%clk 0:01:28]} 29. Rc7 {[%clk 0:00:43]}  Kf6 {[%clk 0:01:26]} 30. Nc5 {[%clk 0:00:39]}  Ne5 {[%clk 0:01:21]} 31. Ne4+ {[%clk 0:00:31]}  Kf5 {[%clk 0:01:15]} 32. Rxh7 {[%clk 0:00:31]}  Nf3+ {[%clk 0:01:12]} 33. Kg2 {[%clk 0:00:27]}  Ke5 {[%clk 0:01:12]} 34. Re7+ {[%clk 0:00:20]}  Kf5 {[%clk 0:01:12]} 35. Kxf3 {[%clk 0:00:19]}  g5 {[%clk 0:01:11]} 36. Rf7+ {[%clk 0:00:19]}  Rxf7 {[%clk 0:01:11]} 37. Bxf7 {[%clk 0:00:19]}  g4+ {[%clk 0:01:12]} 38. Ke2 {[%clk 0:00:17]}  Kxe4 {[%clk 0:01:12]} 39. Be6 {[%clk 0:00:17]}  Bf6 {[%clk 0:00:49]} 40. Bxg4 {[%clk 0:00:17]}  Kd4 {[%clk 0:00:46]} 41. a4 {[%clk 0:00:16]}  Kxc4 {[%clk 0:00:45]} 42. f4 {[%clk 0:00:14]}  Kb4 {[%clk 0:00:45]} 43. Bd7 {[%clk 0:00:14]}  Kc5 {[%clk 0:00:44]} 44. Kf3 {[%clk 0:00:14]}  Kd4 {[%clk 0:00:44]} 45. Bb5 {[%clk 0:00:15]}  Kd5 {[%clk 0:00:42]} 46. h4 {[%clk 0:00:15]}  Ke6 {[%clk 0:00:42]} 47. h5 {[%clk 0:00:15]}  Kf5 {[%clk 0:00:42]} 48. g4+ {[%clk 0:00:15]}  Ke6 {[%clk 0:00:42]} 49. g5 {[%clk 0:00:14]}  Bd4 {[%clk 0:00:42]} 50. Kg4 {[%clk 0:00:13]}  Be3 {[%clk 0:00:41]} 51. h6 {[%clk 0:00:12]}  Kf7 {[%clk 0:00:41]} 52. Bc4+ {[%clk 0:00:12]}  Kg6 {[%clk 0:00:41]} 53. f5+ {[%clk 0:00:12]}  Kh7 {[%clk 0:00:41]} 54. Kh5 {[%clk 0:00:12]}  Bd4 {[%clk 0:00:35]} 55. g6+ {[%clk 0:00:12]}  Kh8 {[%clk 0:00:35]} 56. g7+ {[%clk 0:00:12]}  Bxg7 {[%clk 0:00:34]} 57. hxg7+ {[%clk 0:00:13]}  Kxg7 {[%clk 0:00:34]} 58. Kg5 {[%clk 0:00:13]}  Kh8 {[%clk 0:00:26]} 59. Kf6 {[%clk 0:00:13]}  Kh7 {[%clk 0:00:25]} 60. Ke7 {[%clk 0:00:13]}  Kg7 {[%clk 0:00:24]} 61. f6+ {[%clk 0:00:14]}  Kh7 {[%clk 0:00:25]} 62. f7 {[%clk 0:00:14]}  Kg6 {[%clk 0:00:24]} 63. f8=Q {[%clk 0:00:15]} 1-0


[Site "https://www.chess.com"]

[Event "Titled Tuesday Blitz January 03 Early 2023"]
[White "Lohani, Sujana"]
[Black "Hernandez Bonilla, Amelia"]
[WhiteFideId "12311987"]
[BlackFideId "3900193"]
[WhiteElo "1754"]
[BlackElo "1960"]
[Result "0-1"]
[Round "06"]
[TimeControl "180+2"]
[Date "2023.01.03"]
[WhiteClock "0:02:05"]
[BlackClock "0:02:16"]

1. d4 {[%clk 0:03:00]}  Nf6 {[%clk 0:02:59]} 2. Bf4 {[%clk 0:03:00]}  e6 {[%clk 0:02:59]} 3. e3 {[%clk 0:02:59]}  d5 {[%clk 0:02:59]} 4. c3 {[%clk 0:02:57]}  Bd6 {[%clk 0:02:59]} 5. Bg3 {[%clk 0:02:56]}  O-O {[%clk 0:02:59]} 6. Bd3 {[%clk 0:02:56]}  c5 {[%clk 0:02:59]} 7. Nd2 {[%clk 0:02:56]}  Qc7 {[%clk 0:03:00]} 8. f4 {[%clk 0:02:48]}  b6 {[%clk 0:02:51]} 9. Ngf3 {[%clk 0:02:47]}  cxd4 {[%clk 0:02:47]} 10. cxd4 {[%clk 0:02:43]}  Nc6 {[%clk 0:02:47]} 11. Ne5 {[%clk 0:02:43]}  Nb4 {[%clk 0:02:40]} 12. Ndf3 {[%clk 0:02:14]}  Nxd3+ {[%clk 0:02:33]} 13. Qxd3 {[%clk 0:02:14]}  Bb4+ {[%clk 0:02:29]} 14. Kf2 {[%clk 0:02:10]}  Ne4+ {[%clk 0:02:28]} 15. Ke2 {[%clk 0:02:09]}  a5 {[%clk 0:02:27]} 16. a3 {[%clk 0:02:08]}  Ba6 {[%clk 0:02:26]} 17. axb4 {[%clk 0:02:05]}  Qc2+ {[%clk 0:02:16]} 0-1


[Site "https://www.chess.com"]

[Event "Titled Tuesday Blitz January 03 Early 2023"]
[White "Martinez Alcantara, Jose Eduardo"]
[Black "Carlsen, Magnus"]
[WhiteFideId "3805662"]
[BlackFideId "1503014"]
[WhiteElo "2619"]
[BlackElo "2853"]
[Result "1-0"]
[Round "07"]
[TimeControl "180+2"]
[Date "2023.01.03"]
[WhiteClock "0:00:04"]
[BlackClock "0:00:02"]

1. e4 {[%clk 0:03:00]}  g6 {[%clk 0:02:58]} 2. d4 {[%clk 0:03:00]}  Nf6 {[%clk 0:02:54]} 3. e5 {[%clk 0:02:58]}  Nh5 {[%clk 0:02:54]} 4. g4 {[%clk 0:02:48]}  Ng7 {[%clk 0:02:53]} 5. Bc4 {[%clk 0:02:38]}  d5 {[%clk 0:02:50]} 6. exd6 {[%clk 0:02:32]}  cxd6 {[%clk 0:02:33]} 7. Nc3 {[%clk 0:02:32]}  Nc6 {[%clk 0:02:34]} 8. h3 {[%clk 0:02:32]}  h5 {[%clk 0:02:31]} 9. gxh5 {[%clk 0:02:24]}  Rxh5 {[%clk 0:02:28]} 10. Be3 {[%clk 0:02:23]}  Nf5 {[%clk 0:02:27]} 11. Qd2 {[%clk 0:02:21]}  Bg7 {[%clk 0:02:26]} 12. Nge2 {[%clk 0:02:20]}  Na5 {[%clk 0:02:00]} 13. Bb5+ {[%clk 0:02:03]}  Bd7 {[%clk 0:01:48]} 14. Bxd7+ {[%clk 0:02:03]}  Qxd7 {[%clk 0:01:48]} 15. b3 {[%clk 0:02:03]}  Nc6 {[%clk 0:01:41]} 16. O-O-O {[%clk 0:02:03]}  Rh4 {[%clk 0:01:33]} 17. Bg5 {[%clk 0:01:55]}  Rxd4 {[%clk 0:01:33]} 18. Nxd4 {[%clk 0:01:55]}  Ncxd4 {[%clk 0:01:34]} 19. Qd3 {[%clk 0:01:33]}  Rc8 {[%clk 0:01:26]} 20. Bd2 {[%clk 0:01:34]}  Qc6 {[%clk 0:01:26]} 21. Rhe1 {[%clk 0:01:29]}  Nf3 {[%clk 0:01:24]} 22. Nd5 {[%clk 0:01:23]}  Nxe1 {[%clk 0:01:23]} 23. Rxe1 {[%clk 0:01:24]}  e6 {[%clk 0:01:22]} 24. Nf4 {[%clk 0:01:15]}  Qc5 {[%clk 0:01:18]} 25. Qe4 {[%clk 0:00:59]}  Qd4 {[%clk 0:00:57]} 26. Kd1 {[%clk 0:00:46]}  Qxe4 {[%clk 0:00:55]} 27. Rxe4 {[%clk 0:00:47]}  Kd7 {[%clk 0:00:48]} 28. Ra4 {[%clk 0:00:45]}  a6 {[%clk 0:00:47]} 29. c4 {[%clk 0:00:44]}  Bd4 {[%clk 0:00:46]} 30. Ke2 {[%clk 0:00:43]}  Rh8 {[%clk 0:00:46]} 31. b4 {[%clk 0:00:41]}  e5 {[%clk 0:00:42]} 32. Nd5 {[%clk 0:00:41]}  Rxh3 {[%clk 0:00:42]} 33. b5 {[%clk 0:00:39]}  axb5 {[%clk 0:00:43]} 34. cxb5 {[%clk 0:00:40]}  Bc5 {[%clk 0:00:39]} 35. Nf6+ {[%clk 0:00:36]}  Ke6 {[%clk 0:00:38]} 36. Ne4 {[%clk 0:00:37]}  Nd4+ {[%clk 0:00:35]} 37. Rxd4 {[%clk 0:00:37]}  Ra3 {[%clk 0:00:13]} 38. Nxc5+ {[%clk 0:00:24]}  dxc5 {[%clk 0:00:14]} 39. Rd8 {[%clk 0:00:25]}  Rxa2 {[%clk 0:00:14]} 40. Rb8 {[%clk 0:00:25]}  c4 {[%clk 0:00:14]} 41. Kd1 {[%clk 0:00:24]}  c3 {[%clk 0:00:09]} 42. Bxc3 {[%clk 0:00:22]}  Rxf2 {[%clk 0:00:08]} 43. Rxb7 {[%clk 0:00:23]}  Kd5 {[%clk 0:00:09]} 44. Rc7 {[%clk 0:00:22]}  Rf6 {[%clk 0:00:07]} 45. Ba5 {[%clk 0:00:19]}  Rd6 {[%clk 0:00:02]} 46. b6 {[%clk 0:00:20]}  Rd8 {[%clk 0:00:02]} 47. b7 {[%clk 0:00:18]}  Rb8 {[%clk 0:00:02]} 48. Bb6 {[%clk 0:00:19]}  Kd6 {[%clk 0:00:02]} 49. Rxf7 {[%clk 0:00:19]}  Kc6 {[%clk 0:00:03]} 50. Be3 {[%clk 0:00:07]}  Rxb7 {[%clk 0:00:04]} 51. Rf6+ {[%clk 0:00:07]}  Kd5 {[%clk 0:00:04]} 52. Rxg6 {[%clk 0:00:08]}  Rb2 {[%clk 0:00:03]} 53. Rg4 {[%clk 0:00:07]}  Ra2 {[%clk 0:00:03]} 54. Bd2 {[%clk 0:00:07]}  Ra1+ {[%clk 0:00:03]} 55. Kc2 {[%clk 0:00:07]}  Ra2+ {[%clk 0:00:04]} 56. Kc1 {[%clk 0:00:05]}  Ra1+ {[%clk 0:00:04]} 57. Kb2 {[%clk 0:00:05]}  Rh1 {[%clk 0:00:05]} 58. Bc3 {[%clk 0:00:04]}  Rh2+ {[%clk 0:00:05]} 59. Kb3 {[%clk 0:00:05]}  Rh3 {[%clk 0:00:05]} 60. Kc2 {[%clk 0:00:05]}  Rh2+ {[%clk 0:00:06]} 61. Bd2 {[%clk 0:00:06]}  Rh3 {[%clk 0:00:07]} 62. Ra4 {[%clk 0:00:06]}  Rf3 {[%clk 0:00:07]} 63. Bc3 {[%clk 0:00:06]}  Rf2+ {[%clk 0:00:05]} 64. Kb3 {[%clk 0:00:06]}  Re2 {[%clk 0:00:05]} 65. Ra5+ {[%clk 0:00:04]}  Ke6 {[%clk 0:00:05]} 66. Kc4 {[%clk 0:00:05]}  Re3 {[%clk 0:00:06]} 67. Bb2 {[%clk 0:00:05]}  Kf5 {[%clk 0:00:06]} 68. Rb5 {[%clk 0:00:03]}  Ke6 {[%clk 0:00:04]} 69. Bc1 {[%clk 0:00:03]}  Re1 {[%clk 0:00:03]} 70. Bd2 {[%clk 0:00:04]}  Re4+ {[%clk 0:00:04]} 71. Kd3 {[%clk 0:00:04]}  Rd4+ {[%clk 0:00:04]} 72. Ke3 {[%clk 0:00:04]}  Kf5 {[%clk 0:00:04]} 73. Bc3 {[%clk 0:00:04]}  Re4+ {[%clk 0:00:05]} 74. Kd3 {[%clk 0:00:05]}  Kf4 {[%clk 0:00:05]} 75. Bd2+ {[%clk 0:00:04]}  Kf5 {[%clk 0:00:05]} 76. Bc3 {[%clk 0:00:04]}  Kf4 {[%clk 0:00:05]} 77. Rb8 {[%clk 0:00:05]}  Re3+ {[%clk 0:00:05]} 78. Kc4 {[%clk 0:00:05]}  Re2 {[%clk 0:00:03]} 79. Re8 {[%clk 0:00:05]}  Kf5 {[%clk 0:00:02]} 80. Kd5 {[%clk 0:00:05]}  e4 {[%clk 0:00:03]} 81. Bd4 {[%clk 0:00:05]}  Kf4 {[%clk 0:00:03]} 82. Rf8+ {[%clk 0:00:05]}  Kg3 {[%clk 0:00:04]} 83. Ke5 {[%clk 0:00:04]}  e3 {[%clk 0:00:03]} 84. Ke4 {[%clk 0:00:05]}  Ra2 {[%clk 0:00:02]} 85. Rg8+ {[%clk 0:00:04]}  Kf2 {[%clk 0:00:02]} 86. Bxe3+ {[%clk 0:00:04]} 1-0


[Site "https://www.chess.com"]

[Event "Titled Tuesday Blitz January 03 Early 2023"]
[White "Duda, Jan-Krzysztof"]
[Black "Sarana, Alexey"]
[WhiteFideId "1170546"]
[BlackFideId "24133795"]
[WhiteElo "2724"]
[BlackElo "2685"]
[Result "1-0"]
[Round "07"]
[TimeControl "180+2"]
[Date "2023.01.03"]
[WhiteClock "0:00:47"]
[BlackClock "0:00:21"]

1. e4 {[%clk 0:03:00]}  e5 {[%clk 0:02:51]} 2. Nf3 {[%clk 0:03:00]}  Nc6 {[%clk 0:02:52]} 3. d4 {[%clk 0:02:59]}  exd4 {[%clk 0:02:51]} 4. Nxd4 {[%clk 0:03:00]}  Nf6 {[%clk 0:02:52]} 5. Nxc6 {[%clk 0:03:00]}  bxc6 {[%clk 0:02:53]} 6. Bd3 {[%clk 0:02:57]}  d5 {[%clk 0:02:51]} 7. exd5 {[%clk 0:02:58]}  cxd5 {[%clk 0:02:52]} 8. O-O {[%clk 0:02:57]}  Be7 {[%clk 0:02:48]} 9. c4 {[%clk 0:02:57]}  O-O {[%clk 0:02:41]} 10. Nc3 {[%clk 0:02:54]}  d4 {[%clk 0:02:38]} 11. Ne4 {[%clk 0:02:50]}  c5 {[%clk 0:02:30]} 12. Nxf6+ {[%clk 0:02:45]}  Bxf6 {[%clk 0:02:30]} 13. Qh5 {[%clk 0:02:45]}  g6 {[%clk 0:02:23]} 14. Qxc5 {[%clk 0:02:45]}  Be6 {[%clk 0:02:20]} 15. Bf4 {[%clk 0:02:43]}  Rc8 {[%clk 0:02:18]} 16. Qb5 {[%clk 0:02:42]}  Qe7 {[%clk 0:02:11]} 17. Rfe1 {[%clk 0:02:33]}  Rfd8 {[%clk 0:01:58]} 18. Rac1 {[%clk 0:02:32]}  Rc5 {[%clk 0:01:57]} 19. Qa4 {[%clk 0:02:21]}  Bg5 {[%clk 0:01:49]} 20. Bxg5 {[%clk 0:02:13]}  Qxg5 {[%clk 0:01:48]} 21. b4 {[%clk 0:01:57]}  Re5 {[%clk 0:01:42]} 22. Qc2 {[%clk 0:01:52]}  Re8 {[%clk 0:01:12]} 23. Rxe5 {[%clk 0:01:46]}  Qxe5 {[%clk 0:01:13]} 24. Qd2 {[%clk 0:01:40]}  Bc8 {[%clk 0:01:05]} 25. c5 {[%clk 0:01:37]}  h5 {[%clk 0:00:59]} 26. h4 {[%clk 0:01:30]}  Qf6 {[%clk 0:00:52]} 27. Qg5 {[%clk 0:01:28]}  Qe6 {[%clk 0:00:46]} 28. Bb5 {[%clk 0:01:19]}  Re7 {[%clk 0:00:39]} 29. Bc4 {[%clk 0:01:17]}  Qe4 {[%clk 0:00:38]} 30. Bd5 {[%clk 0:01:14]}  Qe2 {[%clk 0:00:35]} 31. Qxg6+ {[%clk 0:01:14]}  Kf8 {[%clk 0:00:31]} 32. Qf6 {[%clk 0:01:13]}  Ke8 {[%clk 0:00:28]} 33. Bc6+ {[%clk 0:01:02]}  Kd8 {[%clk 0:00:28]} 34. Qxd4+ {[%clk 0:01:01]}  Bd7 {[%clk 0:00:28]} 35. Bf3 {[%clk 0:01:01]}  Qxa2 {[%clk 0:00:24]} 36. c6 {[%clk 0:01:01]}  Qa3 {[%clk 0:00:24]} 37. c7+ {[%clk 0:00:50]}  Kc8 {[%clk 0:00:24]} 38. Bb7+ {[%clk 0:00:51]}  Kxb7 {[%clk 0:00:24]} 39. Qd5+ {[%clk 0:00:50]}  Kb6 {[%clk 0:00:21]} 40. Qc5+ {[%clk 0:00:47]}  Kb7 {[%clk 0:00:21]} 41. c8=Q+ {[%clk 0:00:47]} 1-0


[Site "https://www.chess.com"]

[Event "Titled Tuesday Blitz January 03 Early 2023"]
[White "Zhigalko, Sergei"]
[Black "Boros, Denes"]
[WhiteFideId "13502956"]
[BlackFideId "722340"]
[WhiteElo "2572"]
[BlackElo "2406"]
[Result "1-0"]
[Round "07"]
[TimeControl "180+2"]
[Date "2023.01.03"]
[WhiteClock "0:00:05"]
[BlackClock "0:00:06"]

1. e4 {[%clk 0:03:00]}  c5 {[%clk 0:03:00]} 2. Nf3 {[%clk 0:03:00]}  e6 {[%clk 0:03:00]} 3. c3 {[%clk 0:03:00]}  Nf6 {[%clk 0:02:54]} 4. e5 {[%clk 0:03:01]}  Nd5 {[%clk 0:02:54]} 5. Bc4 {[%clk 0:03:01]}  d6 {[%clk 0:02:43]} 6. d4 {[%clk 0:03:00]}  cxd4 {[%clk 0:02:43]} 7. cxd4 {[%clk 0:03:01]}  Be7 {[%clk 0:02:43]} 8. O-O {[%clk 0:03:01]}  Nd7 {[%clk 0:02:40]} 9. Re1 {[%clk 0:02:36]}  O-O {[%clk 0:02:37]} 10. Qe2 {[%clk 0:02:22]}  N7b6 {[%clk 0:02:28]} 11. Bb3 {[%clk 0:02:22]}  Bd7 {[%clk 0:02:27]} 12. Qe4 {[%clk 0:02:17]}  Bc6 {[%clk 0:02:21]} 13. Qg4 {[%clk 0:02:15]}  Kh8 {[%clk 0:02:10]} 14. Nc3 {[%clk 0:01:56]}  Nxc3 {[%clk 0:01:54]} 15. bxc3 {[%clk 0:01:56]}  dxe5 {[%clk 0:01:49]} 16. Nxe5 {[%clk 0:01:52]}  Rc8 {[%clk 0:01:40]} 17. Bc2 {[%clk 0:01:25]}  Be8 {[%clk 0:01:22]} 18. Qh3 {[%clk 0:01:19]}  f5 {[%clk 0:01:19]} 19. Bb3 {[%clk 0:01:19]}  Nd5 {[%clk 0:01:12]} 20. c4 {[%clk 0:01:11]}  Nf6 {[%clk 0:01:07]} 21. Bb2 {[%clk 0:01:11]}  a5 {[%clk 0:00:44]} 22. a4 {[%clk 0:01:01]}  Ng4 {[%clk 0:00:40]} 23. Nxg4 {[%clk 0:00:55]}  fxg4 {[%clk 0:00:41]} 24. Qxg4 {[%clk 0:00:55]}  Qb6 {[%clk 0:00:41]} 25. Re3 {[%clk 0:00:55]}  Bf6 {[%clk 0:00:40]} 26. c5 {[%clk 0:00:43]}  Qb4 {[%clk 0:00:40]} 27. Rb1 {[%clk 0:00:28]}  Rd8 {[%clk 0:00:26]} 28. Bc3 {[%clk 0:00:24]}  Rxd4 {[%clk 0:00:26]} 29. Qxe6 {[%clk 0:00:11]}  Qxc5 {[%clk 0:00:17]} 30. Bxd4 {[%clk 0:00:11]}  Bxd4 {[%clk 0:00:18]} 31. Rf3 {[%clk 0:00:10]}  Bg6 {[%clk 0:00:18]} 32. Rd1 {[%clk 0:00:06]}  Bf6 {[%clk 0:00:17]} 33. Qd6 {[%clk 0:00:06]}  Qc8 {[%clk 0:00:15]} 34. h3 {[%clk 0:00:05]}  Qa8 {[%clk 0:00:08]} 35. Qb6 {[%clk 0:00:04]}  Qc8 {[%clk 0:00:06]} 36. Bd5 {[%clk 0:00:04]}  Bh5 {[%clk 0:00:06]} 37. Bxb7 {[%clk 0:00:03]}  Qe8 {[%clk 0:00:06]} 38. Bc6 {[%clk 0:00:03]}  Qe6 {[%clk 0:00:06]} 39. Qc5 {[%clk 0:00:03]}  Rc8 {[%clk 0:00:05]} 40. Qxh5 {[%clk 0:00:03]}  Qxc6 {[%clk 0:00:05]} 41. Qxa5 {[%clk 0:00:04]}  h6 {[%clk 0:00:05]} 42. Qb5 {[%clk 0:00:03]}  Qe6 {[%clk 0:00:05]} 43. Qd5 {[%clk 0:00:03]}  Qa6 {[%clk 0:00:05]} 44. Qb5 {[%clk 0:00:03]}  Qe6 {[%clk 0:00:05]} 45. Qd7 {[%clk 0:00:03]}  Qa6 {[%clk 0:00:04]} 46. Rfd3 {[%clk 0:00:04]}  Rf8 {[%clk 0:00:04]} 47. Qb5 {[%clk 0:00:04]}  Qe6 {[%clk 0:00:04]} 48. Qb4 {[%clk 0:00:04]}  Be7 {[%clk 0:00:04]} 49. Qb3 {[%clk 0:00:04]}  Qf5 {[%clk 0:00:04]} 50. Rf3 {[%clk 0:00:04]}  Qc8 {[%clk 0:00:04]} 51. Rxf8+ {[%clk 0:00:05]}  Bxf8 {[%clk 0:00:05]} 52. a5 {[%clk 0:00:04]}  Bc5 {[%clk 0:00:06]} 53. Qc2 {[%clk 0:00:04]}  Qc7 {[%clk 0:00:05]} 54. Rc1 {[%clk 0:00:04]}  Bxf2+ {[%clk 0:00:05]} 55. Kxf2 {[%clk 0:00:05]}  Qf4+ {[%clk 0:00:05]} 56. Kg1 {[%clk 0:00:05]}  Qd4+ {[%clk 0:00:06]} 57. Kh1 {[%clk 0:00:05]} 1-0


[Site "https://www.chess.com"]

[Event "Titled Tuesday Blitz January 03 Early 2023"]
[White "Dardha, Daniel"]
[Black "Nakamura, Hikaru"]
[WhiteFideId "240990"]
[BlackFideId "2016192"]
[WhiteElo "2631"]
[BlackElo "2775"]
[Result "0-1"]
[Round "07"]
[TimeControl "180+2"]
[Date "2023.01.03"]
[WhiteClock "0:00:01"]
[BlackClock "0:00:06"]

1. d4 {[%clk 0:03:00]}  f5 {[%clk 0:02:57]} 2. Nh3 {[%clk 0:02:53]}  Nf6 {[%clk 0:02:55]} 3. g3 {[%clk 0:02:52]}  d6 {[%clk 0:02:51]} 4. Bg2 {[%clk 0:02:37]}  c6 {[%clk 0:02:48]} 5. c4 {[%clk 0:02:31]}  g6 {[%clk 0:02:47]} 6. Nc3 {[%clk 0:02:29]}  Bg7 {[%clk 0:02:36]} 7. d5 {[%clk 0:02:28]}  e5 {[%clk 0:02:31]} 8. dxe6 {[%clk 0:02:27]}  Bxe6 {[%clk 0:02:31]} 9. b3 {[%clk 0:02:21]}  Ne4 {[%clk 0:01:56]} 10. Nxe4 {[%clk 0:02:19]}  fxe4 {[%clk 0:01:56]} 11. Bd2 {[%clk 0:01:51]}  d5 {[%clk 0:01:42]} 12. Nf4 {[%clk 0:01:47]}  Bf7 {[%clk 0:01:41]} 13. Rc1 {[%clk 0:01:35]}  O-O {[%clk 0:01:40]} 14. h4 {[%clk 0:01:29]}  Re8 {[%clk 0:01:35]} 15. O-O {[%clk 0:01:23]}  d4 {[%clk 0:01:23]} 16. e3 {[%clk 0:01:13]}  Na6 {[%clk 0:01:07]} 17. exd4 {[%clk 0:01:11]}  Bxd4 {[%clk 0:01:08]} 18. Qe2 {[%clk 0:01:03]}  e3 {[%clk 0:00:59]} 19. Bxe3 {[%clk 0:00:57]}  Bxe3 {[%clk 0:00:59]} 20. fxe3 {[%clk 0:00:58]}  Qe7 {[%clk 0:00:59]} 21. Rce1 {[%clk 0:00:54]}  Nc5 {[%clk 0:00:56]} 22. Nd3 {[%clk 0:00:48]}  Nxd3 {[%clk 0:00:39]} 23. Qxd3 {[%clk 0:00:49]}  Qe5 {[%clk 0:00:38]} 24. Kh2 {[%clk 0:00:34]}  Rad8 {[%clk 0:00:37]} 25. Qe2 {[%clk 0:00:34]}  Re7 {[%clk 0:00:37]} 26. Rf4 {[%clk 0:00:31]}  Qc3 {[%clk 0:00:24]} 27. Ref1 {[%clk 0:00:24]}  Rd2 {[%clk 0:00:19]} 28. Qf3 {[%clk 0:00:13]}  Rxe3 {[%clk 0:00:18]} 29. Qg4 {[%clk 0:00:12]}  Qb2 {[%clk 0:00:12]} 30. Qc8+ {[%clk 0:00:08]}  Re8 {[%clk 0:00:12]} 31. Qh3 {[%clk 0:00:08]}  Ree2 {[%clk 0:00:11]} 32. Rg1 {[%clk 0:00:05]}  Be6 {[%clk 0:00:10]} 33. g4 {[%clk 0:00:04]}  Qe5 {[%clk 0:00:11]} 34. Qg3 {[%clk 0:00:04]}  Re3 {[%clk 0:00:10]} 35. Rf3 {[%clk 0:00:04]}  Rxf3 {[%clk 0:00:06]} 36. Qxe5 {[%clk 0:00:03]}  Bxg4 {[%clk 0:00:04]} 37. Qe8+ {[%clk 0:00:02]}  Kg7 {[%clk 0:00:04]} 38. Qe7+ {[%clk 0:00:02]}  Kg8 {[%clk 0:00:05]} 39. Qe8+ {[%clk 0:00:02]}  Kg7 {[%clk 0:00:05]} 40. Qe5+ {[%clk 0:00:03]}  Kg8 {[%clk 0:00:05]} 41. Re1 {[%clk 0:00:02]}  Rff2 {[%clk 0:00:04]} 42. Qg3 {[%clk 0:00:01]}  Bf3 {[%clk 0:00:03]} 43. Rg1 {[%clk 0:00:01]}  Rxg2+ {[%clk 0:00:03]} 44. Rxg2 {[%clk 0:00:01]}  Rxg2+ {[%clk 0:00:03]} 45. Qxg2 {[%clk 0:00:02]}  Bxg2 {[%clk 0:00:04]} 46. Kxg2 {[%clk 0:00:02]}  h6 {[%clk 0:00:05]} 47. Kf3 {[%clk 0:00:03]}  Kg7 {[%clk 0:00:05]} 48. Ke4 {[%clk 0:00:03]}  Kf6 {[%clk 0:00:06]} 49. b4 {[%clk 0:00:03]}  g5 {[%clk 0:00:07]} 50. h5 {[%clk 0:00:03]}  Ke6 {[%clk 0:00:07]} 51. c5 {[%clk 0:00:03]}  Kf6 {[%clk 0:00:07]} 52. a4 {[%clk 0:00:03]}  a6 {[%clk 0:00:07]} 53. a5 {[%clk 0:00:02]}  Ke6 {[%clk 0:00:07]} 54. Kd4 {[%clk 0:00:01]}  Kf5 {[%clk 0:00:07]} 55. b5 {[%clk 0:00:01]}  g4 {[%clk 0:00:06]} 0-1


[Site "https://www.chess.com"]